bitfinex-derivatives/quotes_SOLF0:USTF0_20250609
["timestamp","ask_amount","ask_price","bid_price","bid_amount"]
[1749485944091,6.4173,155.76,155.73,0.04476737]
[1749485944288,0.04223717,155.77,155.73,0.04476737]
[1749485945284,0.04223717,155.77,155.75,7.67572584]
[1749485945486,5.21477425,155.81,155.74,39.7]
[1749485945684,6.4172,155.77,155.74,39.7]
[1749485945881,5.21687557,155.79,155.74,39.7]
[1749485946091,7.67572584,155.8,155.74,39.7]
[1749485946393,0.04463518,155.79,155.75,0.04222565]
[1749485946978,6.4164,155.78,155.75,0.04222565]
[1749485947389,0.04463518,155.79,155.75,0.04222565]
[1749485948289,6.4165,155.78,155.75,0.04222565]
[1749485948485,0.04463518,155.79,155.75,0.04222565]
[1749485948685,6.46093518,155.79,155.75,6.45982565]
[1749485949285,0.04463518,155.79,155.75,7.71795149]
[1749485950091,0.04463518,155.79,155.76,6.4171]
[1749485950400,0.04463518,155.79,155.77,7.67572584]
[1749485950694,0.04463518,155.79,155.77,6.4167]
[1749485950896,0.04463518,155.79,155.77,7.67572584]
[1749485951195,0.04463518,155.79,155.77,14.09252584]
[1749485951395,0.04463518,155.79,155.77,6.4168]
[1749485951600,0.04463518,155.79,155.77,14.09252584]
[1749485951788,0.04463518,155.79,155.76,6.4171]
[1749485951987,0.04463518,155.79,155.76,7.67572584]
[1749485952390,5.23661079,155.84,155.78,7.67572584]
[1749485952695,2.73711092,155.86,155.82,7.67572584]
[1749485952893,2.73711092,155.86,155.85,7.67572584]
[1749485953498,2.73711092,155.86,155.84,52.88163697]
[1749485953794,2.73711092,155.86,155.84,59.29533697]
[1749485954091,2.73711092,155.86,155.84,41.40498215]
[1749485956800,6.4135,155.85,155.84,41.40498215]
[1749485961498,9.15021092,155.86,155.84,41.40498215]
[1749485961697,2.73711092,155.86,155.84,41.40498215]
[1749485961891,6.4133,155.85,155.84,41.40498215]
[1749485962097,2.73711092,155.86,155.8,59.23175482]
[1749485962296,2.0939,155.85,155.8,47.7551]
[1749485962992,6.4138,155.84,155.8,41.34]
[1749485963198,0.04528258,155.84,155.8,41.38384436]
[1749485963497,0.04528258,155.84,155.8,47.79904436]
[1749485963701,0.04528258,155.84,155.8,52.86049918]
[1749485964501,0.04528258,155.84,155.82,11.47665482]
[1749485965203,0.04528258,155.84,155.83,6.4142]
[1749485965399,2.73711092,155.86,155.82,11.47665482]
[1749485965704,2.73711092,155.86,155.84,11.47665482]
[1749485966398,2.73711092,155.86,155.85,6.4134]
[1749485969401,2.73711092,155.86,155.84,6.45844253]
[1749485969600,2.73711092,155.86,155.84,0.04494253]
[1749485970009,2.73711092,155.86,155.84,6.45854253]
[1749485970209,2.73711092,155.86,155.84,0.04494253]
[1749485970607,2.73711092,155.86,155.84,6.45854253]
[1749485971506,2.73711092,155.86,155.84,0.04494253]
[1749485972108,2.73711092,155.86,155.8,41.34]
[1749485973109,11.47665482,155.85,155.81,0.04200879]
[1749485973312,0.04587591,155.85,155.81,0.04200879]
[1749485973613,6.4146,155.82,155.81,0.04200879]
[1749485974008,0.04587591,155.85,155.81,0.04200879]
[1749485974209,6.4141,155.84,155.81,0.04200879]
[1749485974411,0.04587591,155.85,155.81,0.04200879]
[1749485974915,6.45937591,155.85,155.82,6.4143]
[1749485975209,0.04587591,155.85,155.81,0.04200879]
[1749485975416,0.04587591,155.85,155.84,6.4138]
[1749485977717,0.04587591,155.85,155.84,14.06864217]
[1749485978715,2.73711092,155.86,155.85,6.4134]
[1749485979413,28.04569018,156.1,155.85,6.4134]
[1749485979414,5.92698376,156.04,155.85,691.1613356]
[1749485979612,4.3838,156.03,155.98,7.6406678]
[1749485979815,0.04332219,156.02,155.99,0.04746086]
[1749485980018,6.4069,156.01,155.99,0.04746086]
[1749485980913,0.04332219,156.02,155.99,0.04746086]
[1749485981419,6.44992219,156.02,155.99,0.04746086]
[1749485981620,0.04332219,156.02,155.99,0.04746086]
[1749485982021,6.45002219,156.02,155.99,0.04746086]
[1749485982315,0.04332219,156.02,155.99,0.04746086]
[1749485983725,6.45002219,156.02,155.99,0.04746086]
[1749485984422,0.04332219,156.02,155.99,0.04746086]
[1749485985625,26.0195815,156.11,155.99,0.04746086]
[1749485985626,17.38567649,156.11,156.01,11.45869273]
[1749485985817,6.83432631,156.1,156.01,11.45869273]
[1749485986018,4.502,156.1,156.01,11.45869273]
[1749485986221,4.502,156.1,156.02,11.45869273]
[1749485986617,4.502,156.1,156.04,0.04521456]
[1749485986823,4.502,156.1,156.04,6.45061456]
[1749485987123,2.33615257,156.09,156.04,0.04521456]
[1749485987324,13.7948453,156.09,156.04,0.04521456]
[1749485987525,2.33615257,156.08,156.04,0.04521456]
[1749485987725,11.45869273,156.09,156.04,0.04521456]
[1749485988024,11.45869273,156.09,156.0,40.6]
[1749485988025,6.4056,156.04,156.0,40.6]
[1749485988423,6.4058,156.04,156.0,47.0071]
[1749485988814,6.4058,156.04,156.0,40.6]
[1749485989027,6.45401908,156.04,156.0,40.64176847]
[1749485989325,0.04821908,156.04,156.01,6.4068]
[1749485989824,0.04821908,156.04,156.0,40.64176847]
[1749485990024,6.45401908,156.04,156.0,47.04886847]
[1749485992530,6.45401908,156.04,156.01,6.4067]
[1749485993734,6.45401908,156.04,156.0,47.04886847]
[1749485993935,6.45401908,156.04,156.0,40.64176847]
[1749485994434,6.45401908,156.04,156.01,6.4068]
[1749485995034,0.04821908,156.04,156.0,40.64176847]
[1749485995631,0.04821908,156.04,156.01,6.4067]
[1749485995834,0.04821908,156.04,156.0,40.64176847]
[1749485996733,0.04821908,156.04,156.01,6.4067]
[1749485997135,0.04821908,156.04,156.0,40.64176847]
[1749485998430,0.04821908,156.04,156.02,6.4062]
[1749485999130,0.04821908,156.04,156.0,40.64176847]
[1749485999131,0.04821908,156.04,156.03,6.406]
[1749486000337,0.04821908,156.04,156.03,17.86469273]
[1749486001336,0.04821908,156.04,156.03,6.406]
[1749486001636,0.04821908,156.04,156.02,6.4062]
[1749486001839,0.04821908,156.04,156.0,52.0804612]
[1749486002045,0.04821908,156.04,156.02,11.45869273]
[1749486002239,0.04821908,156.04,156.03,6.406]
[1749486003436,0.04821908,156.04,156.03,14.03966467]
[1749486003632,0.04821908,156.04,156.0,40.62176847]
[1749486004238,0.04821908,156.04,156.01,7.63366467]
[1749486005438,0.04821908,156.04,156.0,40.62176847]
[1749486005940,0.04821908,156.04,156.01,7.63366467]
[1749486006136,6.45411908,156.04,156.01,14.04016467]
[1749486006332,6.45411908,156.04,156.01,6.4065]
[1749486006742,6.406,156.03,156.0,47.02876847]
[1749486007131,6.4064,156.02,156.0,40.62176847]
[1749486009537,6.4061,156.03,156.0,47.02876847]
[1749486010745,6.4061,156.03,156.0,40.62176847]
[1749486011044,6.4061,156.03,156.0,48.25543314]
[1749486011542,6.4064,156.02,156.0,48.25543314]
[1749486011840,6.4064,156.02,156.0,7.67543314]
[1749486012041,0.04821908,156.04,156.0,0.04176847]
[1749486013341,6.406,156.03,156.0,0.04176847]
[1749486013542,0.04821908,156.04,156.0,0.04176847]
[1749486013745,6.406,156.03,156.0,6.44896847]
[1749486014448,6.4064,156.02,156.0,0.04176847]
[1749486015543,6.406,156.03,156.0,7.67543314]
[1749486015845,0.04821908,156.04,156.01,6.4067]
[1749486016245,6.45401908,156.04,156.01,6.4067]
[1749486016445,0.04821908,156.04,156.01,6.4067]
[1749486016745,0.04821908,156.04,156.0,7.67543314]
[1749486017046,0.04821908,156.04,156.01,6.4066]
[1749486017547,0.04821908,156.04,156.0,7.67543314]
[1749486017740,0.04821908,156.04,156.02,6.4061]
[1749486018247,6.45381908,156.04,156.02,6.4061]
[1749486019348,0.04821908,156.04,156.02,6.4061]
[1749486019641,5.33076059,156.04,156.02,6.4061]
[1749486019848,0.04821908,156.04,156.01,6.4065]
[1749486020036,6.45391908,156.04,156.01,6.4065]
[1749486020254,7.63721881,156.03,156.01,6.4065]
[1749486020439,5.28327317,156.03,156.02,6.4064]
[1749486020639,7.63721881,156.03,156.0,7.67543314]
[1749486020841,2.35394564,156.02,156.0,14.08233314]
[1749486021044,2.35394564,156.01,156.0,6.44866847]
[1749486021244,2.35394564,156.01,156.0,0.04176847]
[1749486021552,7.6568247,156.01,156.0,0.04176847]
[1749486021749,5.30209687,156.01,156.0,6.44896847]
[1749486021949,5.30209687,156.01,155.98,7.63366467]
[1749486022151,4.1692,156.03,155.98,14.04146467]
[1749486022351,6.407,156.01,155.97,7.63366467]
[1749486022653,7.66135358,156.0,155.98,6.4078]
[1749486022853,24.07730117,156.03,155.98,6.4078]
[1749486023051,6.4071,156.01,155.99,0.04860423]
[1749486023252,7.68103164,156.0,155.99,0.04860423]
[1749486023451,14.08823164,156.0,155.99,0.04860423]
[1749486023652,14.08834414,156.0,155.99,0.04860423]
[1749486023946,14.08834656,156.0,155.99,0.04860423]
[1749486024355,7.68114656,156.0,155.99,0.04860423]
[1749486024851,19.99611427,156.0,155.99,0.04860423]
[1749486025155,17.62595777,156.0,155.99,0.04860423]
[1749486025351,6.4082,155.98,155.93,39.62]
[1749486025556,7.68090328,155.97,155.93,39.62]
[1749486025854,7.68090328,155.96,155.95,14.04286467]
[1749486026855,7.68105695,155.96,155.94,0.04186323]
[1749486027051,7.68105695,155.95,155.94,0.04186323]
[1749486027354,7.68107857,155.95,155.94,6.45156323]
[1749486027753,7.681063,155.95,155.94,6.45156323]
[1749486028353,5.3106566,155.95,155.94,6.45156323]
[1749486028561,7.67972966,155.95,155.94,6.45156323]
[1749486028855,5.3106566,155.95,155.94,0.04186323]
[1749486029558,5.3106566,155.95,155.94,7.6755279]
[1749486030056,5.31782106,155.95,155.94,14.0847279]
[1749486030657,5.31782106,155.95,155.94,6.45106323]
[1749486030859,6.45426392,155.97,155.94,14.0847279]
[1749486031154,5.31664793,155.96,155.95,6.4092]
[1749486032559,5.31664793,155.96,155.94,6.45126323]
[1749486032760,6.45416392,155.97,155.94,6.45126323]
[1749486032955,5.30527345,155.96,155.94,6.45126323]
[1749486033158,5.30527345,155.95,155.94,6.45126323]
[1749486033457,0.04556392,155.97,155.94,6.45126323]
[1749486033659,5.30394323,155.96,155.94,6.45126323]
[1749486033858,0.04556392,155.97,155.94,6.45126323]
[1749486034058,5.30401961,155.96,155.95,6.4092]
[1749486034260,5.30401961,155.96,155.94,0.04186323]
[1749486034453,0.04556392,155.97,155.94,0.04186323]
[1749486034648,5.30292714,155.96,155.94,6.45116323]
[1749486034853,0.04556392,155.97,155.94,0.04186323]
[1749486035063,0.04556392,155.97,155.96,6.4088]
[1749486037561,0.04556392,155.97,155.96,14.04246467]
[1749486039868,0.04556392,155.97,155.96,6.4088]
[1749486040161,5.34604631,155.97,155.94,7.6755279]
[1749486040363,0.04556392,155.97,155.94,7.6755279]
[1749486040563,6.45396392,155.97,155.94,14.0849279]
[1749486041157,6.45396392,155.97,155.94,6.45126323]
[1749486041358,6.4089,155.96,155.94,7.6755279]
[1749486041554,0.04556392,155.97,155.94,7.6755279]
[1749486042067,6.45416392,155.97,155.94,7.6755279]
[1749486043560,0.04556392,155.97,155.95,6.4092]
[1749486044270,6.45416392,155.97,155.94,6.45136323]
[1749486044469,6.45416392,155.97,155.94,0.04186323]
[1749486045163,6.45416392,155.97,155.95,6.4092]
[1749486045665,0.04556392,155.97,155.95,7.63366467]
[1749486046764,0.04556392,155.97,155.96,6.4088]
[1749486052172,5.32107537,156.01,156.0,6.4072]
[1749486053368,0.04458633,156.02,156.01,6.4068]
[1749486053562,5.3666645,156.02,156.01,6.4068]
[1749486053965,5.3666645,156.02,156.01,14.04046467]
[1749486054166,0.04458633,156.02,156.01,14.04046467]
[1749486055173,2.40657404,156.02,156.01,14.04046467]
[1749486055671,2.40678841,156.02,156.01,14.04046467]
[1749486055867,0.04458633,156.02,156.01,14.04046467]
[1749486056573,2.40684006,156.02,156.01,14.04046467]
[1749486056980,2.40684006,156.02,156.01,6.4068]
[1749486057267,0.04458633,156.02,156.01,6.4068]
[1749486057468,2.40617244,156.02,156.01,6.4068]
[1749486057665,2.40617363,156.02,156.01,6.4068]
[1749486058070,0.04458633,156.02,156.01,6.4068]
[1749486058277,2.4061736,156.02,156.01,14.04046467]
[1749486059167,0.04458633,156.02,156.01,14.04046467]
[1749486060772,0.04458633,156.02,156.01,6.4068]
[1749486060969,0.04458633,156.02,156.01,14.04046467]
[1749486061267,5.32366711,156.06,156.05,6.4051]
[1749486061473,5.32366711,156.08,156.05,7.63366467]
[1749486061669,2.37355524,156.07,156.04,38.4]
[1749486061870,5.32569173,156.09,156.06,7.63366467]
[1749486062070,2.37350434,156.08,156.07,7.63366467]
[1749486062679,11.7655389,156.09,156.07,7.63366467]
[1749486062883,2.37352471,156.08,156.07,7.63366467]
[1749486063275,7.69372584,156.08,156.06,0.04054962]
[1749486063474,2.37352471,156.07,156.06,0.04054962]
[1749486063677,8.77782471,156.07,156.06,0.04054962]
[1749486063974,7.69252081,156.07,156.02,7.63366467]
[1749486064181,5.3189961,156.06,156.02,7.63366467]
[1749486064372,2.38184862,156.05,156.02,7.63366467]
[1749486064570,2.38192331,156.04,156.01,7.63366467]
[1749486064774,6.4066,156.02,156.01,0.04865829]
[1749486064969,8.78886498,156.02,156.01,0.04865829]
[1749486065168,2.38226498,156.02,156.01,0.04865829]
[1749486065877,2.38269041,156.02,156.01,0.04865829]
[1749486066379,2.38242579,156.02,155.99,7.63366467]
[1749486066579,7.54162735,156.03,155.99,7.63366467]
[1749486066774,7.70166857,156.02,155.98,46.03366467]
[1749486066974,2.3825531,156.01,155.98,46.03366467]
[1749486067178,2.3825531,156.0,155.98,7.63366467]
[1749486067374,2.1293,156.02,155.98,7.63366467]
[1749486067375,6.4499665,156.01,155.98,14.04166467]
[1749486067574,2.38262676,156.0,155.98,14.04166467]
[1749486067776,6.4499665,156.01,155.98,14.04166467]
[1749486067976,6.4499665,156.01,155.88,0.488]
[1749486067977,12.96726673,156.0,155.92,0.36066]
[1749486068172,7.63366467,155.96,155.92,0.36066]
[1749486068373,6.4101,155.94,155.92,0.36066]
[1749486068570,2.2975,155.95,155.92,0.36066]
[1749486068975,2.36996837,155.94,155.92,0.40862519]
[1749486069175,2.36996837,155.93,155.92,0.40862519]
[1749486069385,2.37014812,155.93,155.92,0.40862519]
[1749486069576,2.34552407,155.95,155.92,8.04228986]
[1749486070778,2.34552407,155.95,155.93,6.41]
[1749486071378,2.34552407,155.95,155.94,6.4097]
[1749486071573,0.04802407,155.95,155.94,6.4097]
[1749486072485,0.04802407,155.95,155.92,8.04228986]
[1749486072486,0.04802407,155.95,155.93,6.41]
[1749486072985,0.04802407,155.95,155.92,8.04228986]
[1749486073383,0.04802407,155.95,155.94,14.04336467]
[1749486075586,1.2,155.98,155.97,6.4084]
[1749486075788,1.2,155.98,155.97,14.04206467]
[1749486075986,8.5454,156.01,155.97,7.63366467]
[1749486076186,2.1566,156.04,155.99,7.63366467]
[1749486076387,5.30753525,156.03,155.99,7.63366467]
[1749486076682,0.04235203,156.03,155.99,0.04159915]
[1749486076890,5.31970338,156.02,155.99,0.04159915]
[1749486077085,6.4068,156.01,155.99,0.04159915]
[1749486077280,5.31970338,156.02,155.99,0.04159915]
[1749486077684,6.4072,156.01,155.99,0.04159915]
[1749486077886,2.36401151,156.0,155.99,0.04159915]
[1749486078188,8.77118906,156.0,155.99,0.04159915]
[1749486078494,8.77115608,156.0,155.99,0.04159915]
[1749486078890,2.36395608,156.0,155.99,0.04159915]
[1749486079095,0.04235203,156.03,155.99,14.08286382]
[1749486079295,2.36469636,156.02,155.99,14.08286382]
[1749486079495,2.36469636,156.01,155.99,14.08286382]
[1749486079698,6.4066,156.02,155.99,14.08286382]
[1749486080194,2.36502086,156.01,155.99,14.08286382]
[1749486080396,6.4066,156.02,155.99,14.08286382]
[1749486080598,2.36505291,156.01,155.99,14.08286382]
[1749486080788,0.04235203,156.03,155.99,14.08286382]
[1749486080789,6.44865203,156.03,156.0,6.407]
[1749486080996,2.36535132,156.02,156.0,6.407]
[1749486081195,2.36542886,156.01,156.0,6.407]
[1749486081401,2.36544125,156.01,155.99,0.04159915]
[1749486081698,0.04235203,156.03,155.99,0.04159915]
[1749486081998,8.77212926,156.02,155.99,0.04159915]
[1749486082195,2.36552926,156.01,155.99,0.04159915]
[1749486082395,6.4066,156.02,155.99,0.04159915]
[1749486082595,2.3659797,156.01,155.99,6.44889915]
[1749486082796,6.4066,156.02,155.99,6.44889915]
[1749486082996,2.36591369,156.01,155.99,0.04159915]
[1749486083297,6.4066,156.02,155.99,0.04159915]
[1749486083801,2.36568605,156.01,155.99,0.04159915]
[1749486084001,6.44845203,156.03,156.0,6.4072]
[1749486084199,2.36601484,156.02,156.0,6.4072]
[1749486084499,2.36601484,156.01,156.0,6.4072]
[1749486084903,0.04235203,156.03,156.0,6.4072]
[1749486085203,2.36600719,156.02,155.99,6.44899915]
[1749486085500,0.04235203,156.03,156.0,7.63366467]
[1749486086194,0.04235203,156.03,155.99,0.04159915]
[1749486086195,0.04235203,156.03,156.02,7.63366467]
[1749486086601,0.04235203,156.03,156.02,14.04006467]
[1749486087294,0.04235203,156.03,156.02,6.4064]
[1749486087797,2.40841224,156.03,156.01,14.04026467]
[1749486087998,0.04235203,156.03,156.01,14.04026467]
[1749486088395,0.04235203,156.03,156.01,6.4066]
[1749486089400,6.44855203,156.03,156.0,14.04076467]
[1749486090404,6.44855203,156.03,156.0,6.4071]
[1749486091304,0.04235203,156.03,155.99,7.67526382]
[1749486091702,6.4067,156.02,155.99,7.67526382]
[1749486092002,0.04235203,156.03,155.99,7.67526382]
[1749486092194,6.407,156.01,155.99,7.67526382]
[1749486092598,6.407,156.01,155.99,0.04159915]
[1749486093105,11.74250856,156.02,155.99,14.08286382]
[1749486093409,2.37284024,156.01,155.99,14.08286382]
[1749486093705,6.4066,156.02,155.99,14.08286382]
[1749486093905,2.37279707,156.01,155.99,14.08286382]
[1749486094096,6.4066,156.02,155.99,14.08286382]
[1749486094300,2.37279729,156.01,155.99,14.08286382]
[1749486094506,0.04235203,156.03,155.99,0.04159915]
[1749486094701,7.71046635,156.02,155.99,0.04159915]
[1749486094902,6.4072,156.0,155.99,0.04159915]
[1749486095105,2.3730248,156.0,155.96,6.4087]
[1749486095406,6.4078,155.99,155.96,14.04236467]
[1749486095906,6.4078,155.99,155.97,6.4084]
[1749486096303,6.44821205,156.0,155.97,6.4084]
[1749486096496,0.04081205,156.0,155.96,14.09003975]
[1749486097206,6.4078,155.99,155.97,6.4084]
[1749486097406,6.4078,155.99,155.96,7.68133975]
[1749486098107,6.4078,155.99,155.96,6.45647508]
[1749486098300,6.4081,155.98,155.96,0.04767508]
[1749486098706,0.04081205,156.0,155.96,0.04767508]
[1749486098707,6.4078,155.99,155.96,0.04767508]
[1749486098903,0.04081205,156.0,155.97,7.63366467]
[1749486099702,0.04081205,156.0,155.99,6.4076]
[1749486100707,0.04081205,156.0,155.99,14.04126467]
[1749486102808,15.2,156.05,155.99,7.63366467]
[1749486103112,1.2,156.05,156.03,7.63366467]
[1749486103610,1.2,156.05,156.04,6.4055]
[1749486104008,0.04684822,156.06,156.04,6.4055]
[1749486104211,0.04684822,156.06,156.03,7.67934752]
[1749486104712,0.04684822,156.06,156.05,14.03876467]
[1749486105109,0.04684822,156.06,156.04,14.03906467]
[1749486105312,0.04684822,156.06,156.04,7.63366467]
[1749486106110,0.04684822,156.06,156.05,6.4051]
[1749486107420,0.04684822,156.06,156.03,0.04568285]
[1749486107614,0.04684822,156.06,156.04,7.63366467]
[1749486108012,0.04684822,156.06,156.05,6.4051]
[1749486108413,6.45164822,156.06,156.04,7.63366467]
[1749486108609,0.04684822,156.06,156.03,6.45148285]
[1749486108913,0.04684822,156.06,156.03,0.04568285]
[1749486109116,0.04684822,156.06,156.05,6.4051]
[1749486110617,0.04684822,156.06,156.04,14.03906467]
[1749486110805,0.04684822,156.06,156.03,0.04568285]
[1749486111211,0.04684822,156.06,156.04,6.4053]
[1749486111509,0.04684822,156.06,156.04,7.63366467]
[1749486111714,0.04684822,156.06,156.05,6.4051]
[1749486113615,0.04684822,156.06,156.03,7.67934752]
[1749486114014,6.45164822,156.06,156.03,7.67934752]
[1749486114211,6.45164822,156.06,156.03,14.08494752]
[1749486114718,6.45164822,156.06,156.03,0.04568285]
[1749486114915,6.45164822,156.06,156.03,14.08504752]
[1749486115120,0.04684822,156.06,156.03,7.67934752]
[1749486115919,0.04684822,156.06,156.04,6.4052]
[1749486116516,0.04684822,156.06,156.05,6.4051]
[1749486118922,0.04684822,156.06,156.05,14.03876467]
[1749486119122,0.04684822,156.06,156.05,6.4051]
[1749486119423,0.04684822,156.06,156.05,14.03876467]
[1749486120925,0.04684822,156.06,156.04,6.4053]
[1749486121317,0.04684822,156.06,156.03,7.67934752]
[1749486121540,0.04684822,156.06,156.04,6.4053]
[1749486121721,4.822e-05,156.06,156.05,7.63366467]
[1749486122219,4.822e-05,156.06,156.05,14.03876467]
[1749486122413,4.822e-05,156.06,156.05,6.4051]
[1749486122613,4.822e-05,156.06,156.05,14.03876467]
[1749486123920,4.822e-05,156.06,156.04,6.4052]
[1749486124120,4.822e-05,156.06,156.03,0.04568285]
[1749486124420,2.37874464,156.05,156.03,0.04568285]
[1749486124620,6.40504822,156.06,156.03,0.04568285]
[1749486124821,2.38167681,156.05,156.04,6.4055]
[1749486125020,2.38160612,156.05,156.04,6.4055]
[1749486125224,2.38165557,156.05,156.04,6.4055]
[1749486125614,4.822e-05,156.06,156.04,7.63366467]
[1749486126219,4.822e-05,156.06,156.05,6.4051]
[1749486127320,1.2,156.1,156.09,6.4035]
[1749486127519,1.2,156.1,156.09,14.03716467]
[1749486128121,1.2,156.1,156.09,6.4035]
[1749486128522,3.57966216,156.1,156.09,6.4035]
[1749486128724,1.2,156.1,156.09,6.4035]
[1749486130123,1.2,156.1,156.08,45.18285155]
[1749486130124,1.2,156.1,156.08,51.58665155]
[1749486131026,1.2,156.1,156.09,6.4035]
[1749486131729,1.2,156.1,156.08,51.58655155]
[1749486133032,1.2,156.1,156.09,6.4035]
[1749486133637,1.2,156.1,156.08,45.18285155]
[1749486133638,1.2,156.1,156.08,51.58665155]
[1749486133831,1.2,156.1,156.08,43.95298688]
[1749486134127,1.2,156.1,156.08,51.58665155]
[1749486134634,1.2,156.1,156.09,6.4035]
[1749486135033,1.2,156.1,156.08,45.18285155]
[1749486135234,1.2,156.1,156.08,51.58655155]
[1749486135433,1.2,156.1,156.08,45.18285155]
[1749486135733,1.2,156.1,156.09,6.4035]
[1749486137536,1.2,156.1,156.08,51.58645155]
[1749486137731,1.2,156.1,156.08,45.18285155]
[1749486138333,1.2,156.1,156.08,37.54918688]
[1749486138533,6.4035,156.09,156.08,0.04918688]
[1749486139035,1.2,156.1,156.08,0.04918688]
[1749486139433,1.2,156.1,156.08,7.68285155]
[1749486139633,1.2,156.1,156.08,0.04918688]
[1749486139835,7.7551269,156.09,156.03,44.65366467]
[1749486140035,8.83366467,156.1,156.03,44.65366467]
[1749486140036,2.38588425,156.08,156.03,44.65366467]
[1749486140235,6.4043,156.08,156.05,6.4051]
[1749486140939,6.4043,156.08,156.05,6.45094112]
[1749486140940,6.44881192,156.08,156.05,6.45094112]
[1749486141939,2.38839927,156.07,156.05,6.45094112]
[1749486142139,6.4044,156.07,156.05,6.45094112]
[1749486142836,6.4044,156.07,156.05,0.04584112]
[1749486143641,6.4044,156.07,156.05,6.45094112]
[1749486144342,6.4047,156.06,156.05,0.04584112]
[1749486144541,0.04451192,156.08,156.05,0.04584112]
[1749486144842,14.16106901,156.07,156.05,0.04584112]
[1749486145043,2.38320305,156.06,156.05,0.04584112]
[1749486145438,2.38281354,156.06,156.05,0.04584112]
[1749486145840,5.37788097,156.06,156.05,0.04584112]
[1749486146138,7.7606505,156.06,156.05,0.04584112]
[1749486146339,7.76065055,156.06,156.05,0.04584112]
[1749486146735,14.16535055,156.06,156.05,0.04584112]
[1749486146939,7.76065055,156.06,156.01,368.9]
[1749486147141,7.7628451,156.05,156.01,368.9]
[1749486147344,2.38514255,156.04,156.01,368.9]
[1749486147542,10.95516467,156.07,156.01,368.9]
[1749486147837,5.37440002,156.06,156.01,368.9]
[1749486148043,14.21215075,156.05,156.02,6.44696676]
[1749486148242,2.38514796,156.04,156.02,6.44696676]
[1749486148442,6.45260277,156.05,156.02,6.44696676]
[1749486148643,7.76123889,156.04,156.02,6.44696676]
[1749486148841,6.45260277,156.05,156.03,6.4059]
[1749486149038,2.38317104,156.04,156.03,6.4059]
[1749486149542,2.38308296,156.04,156.03,6.4059]
[1749486149738,0.04710277,156.05,156.03,6.4059]
[1749486149933,2.383127,156.04,156.03,6.4059]
[1749486150641,0.04710277,156.05,156.04,6.4056]
[1749486150841,7.80431968,156.05,156.04,6.4056]
[1749486151144,0.04710277,156.05,156.04,14.03926467]
[1749486151736,7.7981489,156.05,156.02,0.04066676]
[1749486151933,0.04710277,156.05,156.02,0.04066676]
[1749486152341,7.75157223,156.04,156.02,0.04066676]
[1749486152546,7.75184659,156.03,156.02,0.04066676]
[1749486152742,14.15804555,156.03,156.02,0.04066676]
[1749486153146,14.1580703,156.03,156.02,0.04066676]
[1749486154039,14.15637799,156.03,156.02,0.04066676]
[1749486154248,6.4068,156.01,155.93,369.4143]
[1749486154437,7.74894804,156.0,155.96,44.65366467]
[1749486154641,7.63366467,156.02,155.97,6.7985]
[1749486154842,6.4075,156.0,155.97,6.7985]
[1749486155449,2.3817257,155.99,155.97,6.84346134]
[1749486155646,6.45543684,156.0,155.97,6.84346134]
[1749486156446,0.04793684,156.0,155.97,6.84346134]
[1749486156742,0.04793684,156.0,155.97,0.43516134]
[1749486158246,0.04793684,156.0,155.97,6.45336134]
[1749486159444,6.45533684,156.0,155.97,0.04496134]
[1749486160148,0.04793684,156.0,155.97,6.45316134]
[1749486160542,1.21,155.99,155.97,6.45316134]
[1749486162543,1.21,155.99,155.98,14.04166467]
[1749486163245,1.21,155.99,155.98,7.63366467]
[1749486163449,1.21,155.99,155.97,6.45326134]
[1749486164447,1.21,155.99,155.98,6.408]
[1749486165545,1.21,155.99,155.98,14.04166467]
[1749486171052,1.21,155.99,155.98,6.408]
[1749486171653,1.21,155.99,155.97,14.08682601]
[1749486171854,1.21,155.99,155.97,7.67862601]
[1749486172252,1.21,155.99,155.97,0.04496134]
[1749486172653,7.6177,155.99,155.97,0.04496134]
[1749486172859,1.21,155.99,155.97,0.04496134]
[1749486173265,1.21,155.99,155.97,6.45306134]
[1749486174762,1.21,155.99,155.98,6.408]
[1749486175462,1.21,155.99,155.98,14.04166467]
[1749486180577,0.04793684,156.0,155.99,6.4075]
[1749486181469,16.1287,156.05,156.03,6.4057]
[1749486181775,2.1287,156.05,156.03,6.4057]
[1749486182272,2.1287,156.05,156.01,44.13366467]
[1749486182475,2.17733898,156.05,156.01,44.17780347]
[1749486182976,0.04863898,156.05,156.03,7.63366467]
[1749486183378,0.04863898,156.05,156.04,6.4055]
[1749486190078,2.73711092,156.12,156.01,36.5441388]
[1749486190278,2.38128939,156.11,156.1,7.63366467]
[1749486190467,2.38128939,156.11,156.1,42.903]
[1749486190697,7.75148727,156.11,156.06,7.63366467]